Cogmind - Beta 14 @@@ ROGUE MODE // 2024.08.13 @ 22:07:02 Player: dorusv Result: Destroyed by Y-45 Defender with Beam Rifle Performance ------------- Evolutions (1) 500 Regions Visited (3) 600 Robots Destroyed (17) 85 Value Destroyed (303) 303 Prototype IDs (2) 40 Alien Tech Used (0) 0 Bonus (0) 0 TOTAL SCORE: 1528 Bonus ------- None Cogmind --------- Core Integrity 0/400 Matter 274/300 Energy 99/100 System Corruption 2% Temperature Cool (9) Movement Core (150) Ox2 Location -9/Materials Parts ------- > --- POWER (1) -------- (None) > --- PROPULSION (2) --- (None) > --- UTILITY (4) ------ Small Storage Unit Improved Terrain Scan Processor Transport Network Coupler > --- WEAPON (2) ------- Katana > --- INVENTORY (8) ---- Improved Terrain Scanner Peak State ------------ > --- POWER ------------ Light Nuclear Core > --- PROPULSION ------- Aluminum Leg Aluminum Leg > --- UTILITY ---------- Small Storage Unit Improved Terrain Scanner Improved Terrain Scan Processor Transport Network Coupler > --- WEAPON ----------- Light Assault Rifle Light Assault Rifle > --- INVENTORY -------- Light Ion Engine EM Pulse Gun [Rating: 15] Favorites ----------- Power Light Ion Engine Engine Light Ion Engine Power Core Light Nuclear Core Propulsion Aluminum Leg Leg Aluminum Leg Utility Transport Network Coupler Device Seismic Detector Storage Small Storage Unit Processor Transport Network Coupler Weapon Light Assault Rifle Energy Gun EM Pulse Gun Ballistic Gun Light Assault Rifle Slashing Weapon Katana Build | -11 -10 -10 -9 ------- Run | Yrd Mat Min Mat Slots Evolved 2 | . . . 2 Power . | . . . . Propulsion . | . . . . Utility 2 | . . . 2 Weapon . | . . . . Parts Attached 21 | 7 4 2 8 Power 4 | 1 1 . 2 Engine 3 | 1 1 . 1 Core 1 | . . . 1 Reactor . | . . . . Propulsion 5 | 2 1 1 1 Treads . | . . . . Leg 5 | 2 1 1 1 Wheel . | . . . . Hover . | . . . . Flight . | . . . . Utility 8 | 2 2 1 3 Device 3 | 1 1 . 1 Storage 2 | 1 . 1 . Processor 3 | . 1 . 2 Hackware . | . . . . Protection . | . . . . Artifact . | . . . . Weapon 4 | 2 . . 2 Energy Gun 1 | . . . 1 Energy Cannon . | . . . . Ballistic Gun 2 | 2 . . . Ballistic Cannon . | . . . . Launcher . | . . . . Special Weapon . | . . . . Impact Weapon . | . . . . Slashing Weapon 1 | . . . 1 Piercing Weapon . | . . . . Special Melee Weapon . | . . . . Unidentified Prototypes . | . . . . Corrupted Parts 1 | . . . 1 System Corruption 2 | . . . 2 Parts Lost 12 | . 3 . 9 Power 3 | . 1 . 2 Propulsion 4 | . 1 . 3 Utility 2 | . 1 . 1 Weapon 3 | . . . 3 Highest Loss Streak 9 | . 2 . 9 To Critical Strikes . | . . . . Average Slot Usage (%) 92 | . 97 75 86 Engine 11 | . 14 14 1 Core 1 | . . . 7 Leg 23 | . 27 16 15 Device 9 | . 12 . 3 Storage 4 | . 2 2 11 Processor 15 | . 11 14 28 Ballistic Gun 25 | . 28 28 15 Peak Build Rating 15 | 7 7 7 15 Average Rating 7 | 5 6 5 12 On Entrance 4 | . 7 5 7 Naked Turns . | . . . . Heaviest Build 13 | 11 11 10 13 Greatest Support 20 | 20 20 20 20 Greatest Overweight (x) 3 | . . . 3 Average Overweight (x) . | . . . . Largest Inventory Capacity 8 | 8 8 8 8 Average Capacity 6 | 7 5 5 8 Most Carried 5 | 3 5 4 3 Average Carried 3 | 1 4 3 2 Final Capacity 8 | 8 5 8 8 Final Carried 4 | 3 4 2 1 Class Distribution -------------------- 94% | Mutant 5% | Skirmisher Dominant Class ---------------- Mutant | -10/Materials Mutant | -10/Mines Mutant | -9/Materials Resources | -11 -10 -10 -9 ----------- Run | Yrd Mat Min Mat Matter Collected 417 | 308 60 . 49 Remotely . | . . . . Salvage Created 493 | 215 158 . 120 Parts 33 | 17 9 . 7 Haulers Intercepted . | . . . . Recyclers Shooed . | . . . . Parts Field Recycled . | . . . . Retrieved Matter . | . . . . Parts Self-Destructed . | . . . . Prevented . | . . . . Kills | -11 -10 -10 -9 ------- Run | Yrd Mat Min Mat Combat Hostiles Destroyed 8 | . 5 . 3 Melee 1 | . . . 1 Guns 5 | . 5 . . AOE 2 | . . . 2 Classes Destroyed 8 | 3 4 . 1 Worker 2 | 2 . . . Builder 1 | . 1 . . Tunneler 4 | 4 . . . Recycler 1 | 1 . . . Watcher 1 | . 1 . . Swarmer 3 | . 3 . . Grunt 4 | . 2 . 2 Duelist 1 | . . . 1 Best Kill Streak 4 | 4 4 . 3 Combat Bots Only 3 | . 3 . 3 Max Kills in Single Turn 2 | 1 2 . 2 Gunslinging 1 | . 1 . . Exploded 2 | . . . 2 Melee 1 | . . . 1 Uniques/NPCs Destroyed . | . . . . Combat | -11 -10 -10 -9 -------- Run | Yrd Mat Min Mat Hostile Shots Fired 123 | . 59 . 64 Missed 28 | . 18 . 10 Damage Taken 1438 | . 625 . 813 Core 625 | . 221 . 404 Absorbed by Shields . | . . . . Core Remaining (%) 55 | 100 . 11 . Volleys Fired 51 | 19 26 1 5 Largest 2 | 2 2 2 2 Hottest 40 | 40 40 40 40 Shots Fired 99 | 38 53 2 6 Gun 99 | 38 53 2 6 Cannon . | . . . . Launcher . | . . . . Special . | . . . . Kinetic 95 | 38 53 2 2 Thermal . | . . . . Explosive . | . . . . Electromagnetic 4 | . . . 4 Robot Hit Streak 10 | 8 10 1 2 Robot Miss Streak 4 | 1 4 1 2 Penetration Max . | . . . . Secondary Targets 2 | . 2 . . Max Gunslinging Chain 1 | . 1 . . Shots Hit Robots 56 | 28 22 1 5 Core Hits 27 | 14 9 . 4 Critical Kills 1 | . 1 . . Critical Parts Destroyed . | . . . . Critical Strikes 1 | . 1 . . Destroy 1 | . 1 . . Melee Attacks 2 | . . . 2 Impact . | . . . . Slashing 2 | . . . 2 Piercing . | . . . . Sneak Attacks . | . . . . Combat Hostiles . | . . . . Follow-up Attacks . | . . . . Damage Inflicted 1012 | 251 543 14 204 Guns 488 | 251 193 10 34 Cannons . | . . . . Explosions 462 | . 350 . 112 Melee 58 | . . . 58 Ramming 4 | . . 4 . Kinetic 454 | 251 193 10 . Thermal 112 | . . . 112 Explosive 350 | . 350 . . Electromagnetic 34 | . . . 34 Impact . | . . . . Slashing 58 | . . . 58 Piercing . | . . . . Highest Corruption 2 | . 2 2 2 Average Corruption 2 | . 2 2 2 Corruption Purged . | . . . . Corruption Blocked . | . . . . Effects 8 | . 4 3 1 Message Errors 3 | . 1 1 1 Heat Flow Errors 1 | . . 1 . Energy Discharges 2 | . 1 1 . Data Loss (major) 1 | . 1 . . Misfires 1 | . 1 . . Overload Shots . | . . . . Overflow Damage 4 | . 4 . . Projectiles . | . . . . Explosions 4 | . 4 . . Melee . | . . . . Knockbacks . | . . . . Impact . | . . . . Kinetic . | . . . . Secondary . | . . . . Self-Inflicted Damage 43 | . . . 43 Shots 1 | . . . 1 Rammed . | . . . . Targets Rammed 1 | . . 1 . Kicked 1 | . . 1 . Crushed . | . . . . Highest Temperature 184 | . 72 184 48 Average Temperature 42 | . 36 83 15 Received Heat Transfer 513 | . 207 . 306 Siege Activations . | . . . . Robots Corrupted . | . . . . Combat Hostiles . | . . . . Parts Fried . | . . . . Impact Corruptions . | . . . . Robots Melted . | . . . . Combat Hostiles . | . . . . Parts Melted . | . . . . Heat Transferred 50 | . . . 50 Parts Sabotaged . | . . . . Parts Stolen . | . . . . Parts Stripped . | . . . . Power Chain Reactions 1 | . . . 1 Alert | -11 -10 -10 -9 ------- Run | Yrd Mat Min Mat Peak Influence 125 | 35 125 57 125 Initial 42 | . 22 42 22 Average 54 | 16 67 49 56 Maximum Alert Level . | . . . . Low Security (%) 100 | 100 100 100 100 Level 1 . | . . . . Level 2 . | . . . . Level 3 . | . . . . Level 4 . | . . . . Level 5 . | . . . . High Security . | . . . . Max Security . | . . . . Squads Dispatched 2 | . 1 . 1 Investigation . | . . . . Extermination . | . . . . Reinforcement 2 | . 1 . 1 Assault . | . . . . Garrison . | . . . . Intercept . | . . . . Searches Triggered . | . . . . Construction Impeded . | . . . . Haulers Reinforced . | . . . . Active Scanning Responses . | . . . . Cargo Convoy Interrupts . | . . . . Stealth | -11 -10 -10 -9 --------- Run | Yrd Mat Min Mat Distress Signals 5 | . 2 . 3 Communications Jammed . | . . . . Distress Signals . | . . . . Times Spotted 22 | . 11 1 10 Peak Tracking Total 6 | . 4 2 6 Tactical Retreats 1 | . . . 1 Traps | -11 -10 -10 -9 ------- Run | Yrd Mat Min Mat Traps Triggered 1 | . 1 . . Indirectly . | . . . . Trap Hack Attempts . | . . . . Triggered . | . . . . Disarmed . | . . . . Reprogrammed . | . . . . Reused . | . . . . Traps Extracted . | . . . . Installed . | . . . . Triggered . | . . . . Machines | -11 -10 -10 -9 ---------- Run | Yrd Mat Min Mat Machines Disabled 2 | . 1 . 1 Max in Single Turn 1 | . 1 . 1 Machines Repaired . | . . . . Machines Dismantled . | . . . . Machines Sabotaged . | . . . . Overloaded Fab Kills . | . . . . Hacking | -11 -10 -10 -9 --------- Run | Yrd Mat Min Mat Machines Accessed 3 | . 3 . . Terminals 3 | . 3 . . Fabricators . | . . . . Repair Stations . | . . . . Recycling Units . | . . . . Scanalyzers . | . . . . Garrison Access . | . . . . Total Hacks 10 | . 10 . . Successful 5 | . 5 . . Failed 5 | . 5 . . Catastrophic . | . . . . Database Lockouts . | . . . . Manual 3 | . 3 . . Terminals 10 | . 10 . . Fabricators . | . . . . Repair Stations . | . . . . Recycling Units . | . . . . Scanalyzers . | . . . . Garrison Access . | . . . . Terminal Hacks 5 | . 5 . . Prototype ID Bank 1 | . 1 . . Surveillance Status 1 | . 1 . . Hauler Manifests 1 | . 1 . . Zone Layout 2 | . 2 . . Fabricator Hacks . | . . . . Repair Station Hacks . | . . . . Recycling Unit Hacks . | . . . . Scanalyzer . | . . . . Garrison Access Hacks . | . . . . Unauthorized Hacks . | . . . . Terminals . | . . . . Fabricators . | . . . . Repair Stations . | . . . . Recycling Units . | . . . . Scanalyzers . | . . . . Garrison Access . | . . . . Data Cores Recovered . | . . . . Used . | . . . . Hacking Detections 3 | . 3 . . Full Trace Events 3 | . 3 . . Feedback Events . | . . . . Feedback Blocked . | . . . . Robot Schematics Acquired . | . . . . Robots Built . | . . . . Authchips . | . . . . Time . | . . . . Total Robot Build Rating . | . . . . Part Schematics Acquired . | . . . . Parts Built . | . . . . Authchips . | . . . . Time . | . . . . Total Part Build Rating . | . . . . Parts Repaired . | . . . . Time . | . . . . Parts Recycled . | . . . . Recycled Matter . | . . . . Retrieved Matter . | . . . . Retrieved Components . | . . . . Parts Scanalyzed . | . . . . Part Schematics Acquired . | . . . . Parts Damaged . | . . . . Bothacking | -11 -10 -10 -9 ------------ Run | Yrd Mat Min Mat Used RIF Installer . | . . . . Robots Hacked . | . . . . Non-combat . | . . . . Combat . | . . . . Robot Hacks Applied . | . . . . Relay Couplers Released . | . . . . Fabnet Peak Effective % . | . . . . Robots Rewired . | . . . . Allies Hacked . | . . . . Hacks Repelled . | . . . . Allies | -11 -10 -10 -9 -------- Run | Yrd Mat Min Mat Total Allies . | . . . . Largest Group . | . . . . Highest-Rated Group . | . . . . Highest-Rated Ally . | . . . . Total Orders . | . . . . Ally Attacks . | . . . . Total Damage . | . . . . Kills . | . . . . Allies Corrupted . | . . . . Allies Melted . | . . . . Intel | -11 -10 -10 -9 ------- Run | Yrd Mat Min Mat Robot Analysis Total . | . . . . Derelict Logs Recovered . | . . . . Drone Launches . | . . . . Drone Recoveries . | . . . . Exploration | -11 -10 -10 -9 ------------- Run | Yrd Mat Min Mat Turns Passed 1103 | 194 598 130 181 Spaces Moved 770 | 107 437 104 122 Core 22 | 4 . . 18 Treads . | . . . . Legs 748 | 103 437 104 104 Wheels . | . . . . Hover . | . . . . Flight . | . . . . Fastest Speed 50 | 50 120 120 100 Average Speed 120 | 117 120 120 126 Slowest Speed 200 | 120 120 120 200 Overloaded Moves . | . . . . Propulsion Burnouts . | . . . . Robots Hopped . | . . . . Cave-ins Triggered . | . . . . Exploration Rate (%) 25 | 4 63 21 12 Regions Visited 3 Branch Regions 1 Pre-discovered Areas . | . . . . Known Exits Taken . | . . . . Unknown Exits Taken 3 | 1 1 1 . Scrap Searched . | . . . . Spaces Dug . | . . . . Terrain Destroyed 15 | . 12 . 3 Melee . | . . . . Projectile . | . . . . AOE 15 | . 12 . 3 Terrain Rammed . | . . . . Walls Destroyed . | . . . . Machines Disabled . | . . . . Actions | -11 -10 -10 -9 --------- Run | Yrd Mat Min Mat Total 855 | 141 468 107 139 Wait 6 | 6 . . . Move 767 | 106 436 103 122 Hop . | . . . . Pick Up 6 | 3 1 . 2 Fast Attach 10 | 7 . . 3 Attach 6 | . 1 2 3 Detach . | . . . . Swap 5 | . 3 . 2 Drop 1 | . 1 . . Fire 51 | 19 26 1 5 Melee 2 | . . . 2 Ram . | . . . . Kick 1 | . . 1 . Crush . | . . . . Escape Stasis . | . . . . Rewire . | . . . . Trap . | . . . . Miscellaneous . | . . . . Route ------- -11/Scrapyard -10/Materials (discovered 3 exits: [*Mat x2] / [*Min]) -10/Mines -9/Materials History --------- Turn | Location | Event 20 | -11/Scrapyard | Discovered new exit (range 16) 195 | -11/Scrapyard | Entered Materials 329 | -10/Materials | Build established: Mutant 396 | -10/Materials | Discovered new exit (range 12) 539 | -10/Materials | Discovered new exit (range 15) 687 | -10/Materials | Discovered new exit (range 14) 723 | -10/Materials | Core integrity fell below 50% 757 | -10/Materials | Core integrity fell below 20% 793 | -10/Materials | Entered Mines 800 | -10/Mines | Received a Rocket Launcher from a helpful Derelict 861 | -10/Mines | Joined a pair of Derelicts in attacking an 0b10 outpost 911 | -10/Mines | Discovered new exit (range 8) 923 | -10/Mines | Entered Materials 923 | -9/Materials | Evolved 2 slots: Utility x2 1076 | -9/Materials | Core integrity fell below 50% 1090 | -9/Materials | Core integrity fell below 20% 1104 | -9/Materials | Destroyed by Y-45 Defender with Beam Rifle Last Messages --------------- 01074_ U-05 Engineer lays Concrete. 01081_ Acquired Corrupted Imp. Aluminum Leg. 01081_ Integrated Corrupted Imp. Aluminum Leg (+2). 01081_ Complication: System interference. 01081_ Signal Interpreter temporarily disabled. 01081_ Imp. Terrain Scan Processor temporarily disabled. 01082_ U-05 Engineer builds a Wall. 01085_ U-05 Engineer lays Concrete. 01086_ U-05 Engineer builds a Wall. 01087_ Imp. Aluminum Leg destroyed. 01087_ Critical hit (Burn: +37). 01088_ U-05 Engineer lays Concrete. 01088_ Lgt. Ion Engine destroyed. 01090_ X#5YZHE7G1FQNN& C%STG0MV 01090_ U-05 Engineer lays Concrete. 01092_ Signal Interpreter destroyed. 01093_ U-05 Engineer lays Concrete. 01098_ T-07 Excavator is excavating. Map ----- +----------------------------------------------------+ | # # [ #?? ????????????????????????????? | | ###+##########+### ?????????#????????????????????? | | !! #????# # ???? ?????????????????????????? | | ! #???## + ?? ???????????????????????????? | | ##?#?# #???????????????????????????????? | | #?#??# #???????????????????????????????? | | ##???# #? ? ???????????????????????????? | | """ """ ###### #??? ?? ???????????????????????? | | """ """ / #???????????????????????????????? | | """ """ ###### #???????????????????????????????? | | #########?####*%!#??#????????????????????????????? | | ??????####??## = #?????###???????????????????????? | | #??#?????#???# #???? ???????????????????????? | | ? ????#???#?## # ? ???????????????????????? | | ?? ???######?# # ? ????????????????????????? | | ??????# [# #? ?????????????????????????? | | ??????#""" # # ???????????????????????????? | | ??????#""" # # ????????????????????????????? | | ??????#""" # + ??????????????????????????????? | | ??????# [ /%= #???????????????????????????????? | | ??????# #!%[#???????????##??????????????????? | | ??????########[ ##?????????# ####???????????????? | | ########## #########? #???????????????? | | ! " Y g # "" #???????????????? | | Y # ""S #???????????????? | | @/ "" #???????????????? | | ########## ##### # !#???????????????? | | ????????????#######???# # #???????????????? | | ??????????????????????# #?######???????????????? | | ??????????????????????#u #??????????????????????? | | ??????????????????????u #??????????????????????? | | ????????????????????? # #??????????????????????? | | ????????????????????### a??????????????????????? | | ??????????????????????# #??????????????????????? | | ??????????????????????# #??????????????????????? | | ??????????????????????# #??????????????????????? | | ??????????????????????# #??????????????????????? | | ??????????????????????# #??????????a???????????? | | ?????????????????????? ??????????????????????? | | ?????????????????????? ???????????????????????? | | ??????????????????????? ???????????????????????? | | ?????????????????????????????????????????????????? | | ?????????????????????????????????????????????????? | | ?????????????????????????????????????????????????? | | ?????????????????????????????????????????????????? | | ?????????????????????????????????????????????????? | | ?????????????????????????????????????????????????? | | ?????????????????????????????????????????????????? | | ?????????????????????????????????????????????????? | | ?????????????????????????????????????????????????? | +----------------------------------------------------+ Best States ------------- Heat Dissipation 28 Energy Generation 14 Energy Capacity 160 Matter Stores 300 Matter Capacity 300 Sight Range 16 Terrain Scan Range 16 Terrain Scan Density 110 Evasion (%) 55 Item Schematics ----------------- None Robot Schematics ------------------ None Fabricated ------------ Nothing Alien Tech Used ----------------- None Achievements -------------- Omniscient Cartographer Challenges ------------ None Game ------ Seed ProcessingPlatingVibroblade Manual? 0 Play Time 00:13:13 Cumulative 4.2 hours Start 2024.08.13 @ 21:41:45 End 2024.08.13 @ 22:07:02 Sessions 1 Manual Loads 0 Difficulty Rogue Special Mode None Game No. 18 Rogue 15 Adventurer 3 Explorer 0 Win Type - Total 0 Types 0/0/0/0/0/0/0/0/0 Lore% 8 Gallery% 10 Achievement% 12 Wizard Run 0 Options --------- Layout 1 ASCII 0 Keyboard 1 Movement Arrows Keybinds 0 Fullscreen 1 Font 28/Smallcaps Map View 50x43 Zoom Use 0% Tactical HUD 1 Map Filters NONE Filters NONE Steam 1 RUN: 5580c712-e3f8-4c53-9edb-83c9e1984057